[Event "NOR-chT Eliteserien 2021-22"]
[Site "Norway"]
[Date "2022.03.06"]
[Round "9.20"]
[White "Bern, Ivar"]
[Black "Galchenko, Matvey"]
[Result "1/2-1/2"]
[ECO "A36"]
[WhiteElo "2312"]
[BlackElo "2443"]
[Annotator "NA"]
[PlyCount "97"]
[EventDate "2021.10.29"]
[EventType "team-tourn"]
[EventCountry "NOR"]
[SourceTitle "playchess.com"]
[Source "ChessBase"]
[SourceQuality "1"]
[TimeControl "40/5400+30:1800+30"]

1. c4 {[%emt 0:00:08]} c5 {[%emt 0:00:28]} 2. g3 {[%emt 0:00:30]} g6 {[%emt 0:00:22]} 3. Bg2 {[%emt 0:00:15]} Bg7 {[%emt 0:00:04]} 4. Nc3 {[%emt 0:00:23]} Nc6 {[%emt 0:00:04]} 5. a3 {[%emt 0:04:41]} d6 {[%emt 0:03:06]} 6. Rb1 {[%emt 0:01:26]} a5 $11 {[%emt 0:03:10]} 7. d3 {[%emt 0:01:30]} e5 {[%emt 0:04:28]} 8. Nd5 {[%emt 0:19:47]} Be6 {[%emt 0:03:15]} 9. e3 {[%emt 0:00:51]} Nge7 {[%emt 0:01:01]} 10. Ne2 {[%emt 0:00:21]} O-O {[%emt 0:01:30]} 11. Nec3 {[%emt 0:00:18]} Rb8 {[%emt 0:00:33]} 12. O-O {[%emt 0:05:44]} b6 {[%emt 0:01:24]} 13. Bd2 {[%emt 0:03:36]} Qd7 {[%emt 0:09:49]} 14. b4 {[%emt 0:12:40]} axb4 {[%emt 0:04:11]} 15. axb4 {[%emt 0:00:08]} cxb4 {[%emt 0:00:54]} 16. Nxe7+ {[%emt 0:01:10]} Nxe7 {[%emt 0:00:35]} 17. Nd5 {[%emt 0:07:40]} b5 {[%emt 0:07:53]} 18. Bxb4 {[%emt 0:03:20]} Nf5 {[%emt 0:13:24]} 19. Qd2 {[%emt 0:06:25]} Rfc8 {[%emt 0:05:21]} 20. Ba5 {[%emt 0:03:47]} bxc4 {[%emt 0:27:53]} 21. Nb6 {[%emt 0:07:32]} Rxb6 {[%emt 0:00:19]} 22. Rxb6 {[%emt 0:00:13]} cxd3 {[%emt 0:00:12]} 23. Bb7 {[%emt 0:06:37]} Rc5 {[%emt 0:03:05]} 24. Bb4 {[%emt 0:00:51]} Rc7 {[%emt 0:02:22]} 25. Be4 {[%emt 0:02:01]} h5 {[%emt 0:02:40]} 26. Bxd3 {[%emt 0:02:57]} d5 {[%emt 0:01:03]} 27. Bb5 {[%emt 0:01:43]} Qc8 {[%emt 0:00:49]} 28. Ba6 {[%emt 0:01:00]} Qa8 {[%emt 0:01:07]} 29. Rc1 {[%emt 0:03:48]} Rxc1+ {[%emt 0:01:05]} 30. Qxc1 {[%emt 0:00:02]} d4 {[%emt 0:00:16]} 31. Bb7 {[%emt 0:02:23]} Qa2 {[%emt 0:00:42]} 32. e4 {[%emt 0:01:28]} Bh6 {[%emt 0:00:16]} 33. Qe1 {[%emt 0:01:05]} Ne3 {[%emt 0:00:56]} 34. Ra6 {[%emt 0:00:25]} Qb2 {[%emt 0:00:21]} 35. Rxe6 {[%emt 0:00:31]} Nc2 {[%emt 0:01:04]} 36. Re8+ {[%emt 0:01:14]} Kh7 37. Qe2 {[%emt 0:00:00]} Qb1+ {[%emt 0:01:18]} 38. Kg2 {[%emt 0:00:00]} Nxb4 {[%emt 0:00:24]} 39. Qf3 {[%emt 0:00:48]} Bf4 {[%emt 0:01:25]} 40. gxf4 {[%emt 0:00:39]} Nc2 {[%emt 0:00:01]} 41. Kh3 {[%emt 0:03:42]} Ne1 {[%emt 0:14:18]} 42. Qa3 {[%emt 0:00:30]} Qb5 {[%emt 0:00:30]} 43. Rh8+ {[%emt 0:00:30]} Kxh8 {[%emt 0:00:30]} 44. Qf8+ {[%emt 0:00:30]} Kh7 {[%emt 0:00:30]} 45. Qxf7+ {[%emt 0:00:30]} Kh8 {[%emt 0:00:30]} 46. Qf8+ {[%emt 0:00:30]} Kh7 {[%emt 0:00:30]} 47. Qe7+ {[%emt 0:00:30]} Kh6 {[%emt 0:00:30]} 48. Qg5+ {[%emt 0:00:30]} Kh7 {[%emt 0:00:30]} 49. Qe7+ {[%emt 0:00:30]} 1/2-1/2

[Event "NOR-chT Eliteserien 2021-22"]
[Site "Norway"]
[Date "2022.03.06"]
[Round "9.21"]
[White "Mikalsen, Erlend"]
[Black "Gullaksen, Eirik"]
[Result "0-1"]
[ECO "B32"]
[WhiteElo "2368"]
[BlackElo "2349"]
[Annotator "NA"]
[PlyCount "94"]
[EventDate "2021.10.29"]
[EventType "team-tourn"]
[EventCountry "NOR"]
[SourceTitle "playchess.com"]
[Source "ChessBase"]
[SourceQuality "1"]
[TimeControl "40/5400+30:1800+30"]

1. e4 {[%emt 0:04:42]} c5 {[%emt 0:00:15]} 2. Nf3 {[%emt 0:00:03]} Nc6 {[%emt 0:00:20]} 3. d4 {[%emt 0:00:03]} cxd4 {[%emt 0:00:25]} 4. Nxd4 {[%emt 0:00:02]} e5 {[%emt 0:00:32]} 5. Nb5 {[%emt 0:00:06]} d6 {[%emt 0:00:22]} 6. g3 {[%emt 0:00:07]} Be7 {[%emt 0:00:43]} 7. Bg2 {[%emt 0:01:01]} a6 {[%emt 0:02:00]} 8. N5c3 {[%emt 0:00:05]} Nf6 {[%emt 0:00:06]} 9. Nd5 {[%emt 0:01:04]} Nxd5 {[%emt 0:00:50]} 10. exd5 {[%emt 0:00:05]} Nd4 {[%emt 0:02:21]} 11. O-O {[%emt 0:00:14]} O-O {[%emt 0:02:20]} 12. c3 {[%emt 0:00:27]} Nf5 {[%emt 0:00:30]} 13. a4 {[%emt 0:00:18]} Bd7 {[%emt 0:02:23]} 14. a5 {[%emt 0:01:00]} b6 {[%emt 0:02:47]} 15. axb6 {[%emt 0:02:50]} Qxb6 {[%emt 0:01:38]} 16. Na3 {[%emt 0:00:11]} Rfc8 {[%emt 0:01:39]} 17. Re1 {[%emt 0:11:14]} a5 {[%emt 0:14:07]} 18. Bf1 {[%emt 0:02:04]} a4 {[%emt 0:06:40]} 19. Nc2 {[%emt 0:01:24]} Bd8 {[%emt 0:04:07]} 20. Bg2 {[%emt 0:07:23]} h6 {[%emt 0:04:09]} 21. Qd3 {[%emt 0:08:26]} Ne7 {[%emt 0:06:15]} 22. Nb4 {[%emt 0:00:13]} Qb5 {[%emt 0:02:54]} 23. Qxb5 {[%emt 0:08:21]} Bxb5 {[%emt 0:00:14]} 24. f4 {[%emt 0:02:57]} f6 {[%emt 0:02:10]} 25. fxe5 {[%emt 0:04:37]} fxe5 {[%emt 0:00:30]} 26. Bh3 {[%emt 0:00:32]} Rcb8 {[%emt 0:00:16]} 27. Be6+ {[%emt 0:01:18]} Kh8 {[%emt 0:00:52]} 28. Re4 {[%emt 0:02:03]} Ba5 {[%emt 0:03:50]} 29. Bd2 {[%emt 0:05:47]} Rf8 {[%emt 0:03:19]} 30. c4 {[%emt 0:04:32]} Bb6+ {[%emt 0:01:14]} 31. Kh1 {[%emt 0:00:52]} Be8 {[%emt 0:01:03]} 32. Re2 {[%emt 0:04:46]} Nf5 {[%emt 0:06:31]} 33. Bxf5 {[%emt 0:03:25]} Rxf5 {[%emt 0:00:22]} 34. g4 {[%emt 0:00:24]} Rf8 {[%emt 0:02:38]} 35. Kg2 {[%emt 0:04:46]} Bg6 {[%emt 0:01:28]} 36. Rc1 {[%emt 0:09:48]} a3 {[%emt 0:02:49]} 37. bxa3 {[%emt 0:01:58]} Rxa3 {[%emt 0:00:12]} 38. Be1 {[%emt 0:03:02]} Ra4 {[%emt 0:03:25]} 39. h3 {[%emt 0:05:16]} Bc5 {[%emt 0:02:28]} 40. Ra2 {[%emt 0:02:01]} Rxb4 {[%emt 0:01:46]} 41. Bxb4 {[%emt 0:30:06]} Be4+ {[%emt 0:31:13]} 42. Kh2 {[%emt 0:01:07]} Bxb4 {[%emt 0:00:07]} 43. Re2 {[%emt 0:00:41]} Bd3 {[%emt 0:00:17]} 44. Rg2 {[%emt 0:00:21]} e4 {[%emt 0:00:15]} 45. g5 {[%emt 0:00:17]} hxg5 {[%emt 0:00:19]} 46. Rxg5 {[%emt 0:00:26]} Bd2 {[%emt 0:00:44]} 47. Rh5+ {[%emt 0:00:03]} Kg8 {[%emt 0:00:07]} 0-1

[Event "NOR-chT Eliteserien 2021-22"]
[Site "Norway"]
[Date "2022.03.06"]
[Round "9.22"]
[White "Gabrielsen, Stig"]
[Black "Flermoen, Peter"]
[Result "0-1"]
[ECO "B38"]
[WhiteElo "2269"]
[BlackElo "2297"]
[Annotator "NA"]
[PlyCount "78"]
[EventDate "2021.10.29"]
[EventType "team-tourn"]
[EventCountry "NOR"]
[SourceTitle "playchess.com"]
[Source "ChessBase"]
[SourceQuality "1"]
[TimeControl "40/5400+30:1800+30"]

1. e4 {[%emt 0:00:04]} c5 {[%emt 0:00:06]} 2. Nf3 {[%emt 0:00:17]} g6 {[%emt 0:00:10]} 3. d4 {[%emt 0:00:24]} cxd4 {[%emt 0:00:09]} 4. Nxd4 {[%emt 0:00:07]} Bg7 {[%emt 0:00:09]} 5. c4 {[%emt 0:00:17]} Nc6 {[%emt 0:00:21]} 6. Be3 {[%emt 0:00:16]} d6 {[%emt 0:00:17]} 7. Nc3 {[%emt 0:00:18]} Nf6 {[%emt 0:00:14]} 8. Be2 {[%emt 0:00:15]} O-O {[%emt 0:00:11]} 9. O-O {[%emt 0:00:08]} Nxd4 {[%emt 0:00:22]} 10. Bxd4 {[%emt 0:00:10]} Bd7 {[%emt 0:00:08]} 11. h3 {[%emt 0:07:56]} Bc6 {[%emt 0:00:43]} 12. Qc2 {[%emt 0:00:10]} a5 {[%emt 0:00:38]} 13. Rad1 {[%emt 0:00:09]} Nd7 {[%emt 0:00:41]} 14. Bxg7 {[%emt 0:00:07]} Kxg7 {[%emt 0:00:14]} 15. Bg4 {[%emt 0:00:06]} Ne5 {[%emt 0:07:47]} 16. c5 {[%emt 0:00:27]} Nxg4 {[%emt 0:02:06]} 17. hxg4 {[%emt 0:00:17]} Qc8 {[%emt 0:06:37]} 18. cxd6 {[%emt 0:00:10]} Qxg4 {[%emt 0:10:26]} 19. dxe7 {[%emt 0:00:08]} Rfe8 {[%emt 0:00:20]} 20. Nd5 {[%emt 0:00:07]} Bxd5 {[%emt 0:00:52]} 21. Qc3+ {[%emt 0:02:53]} Kg8 {[%emt 0:01:48]} 22. exd5 {[%emt 0:00:10]} Rxe7 {[%emt 0:01:04]} 23. d6 {[%emt 0:06:16]} Rd7 {[%emt 0:07:26]} 24. Rfe1 {[%emt 0:17:06]} Qa4 {[%emt 0:11:34]} 25. Qf6 {[%emt 0:22:59]} Rad8 {[%emt 0:06:40]} 26. Rd4 {[%emt 0:01:41]} Qc6 {[%emt 0:10:03]} 27. Re7 {[%emt 0:08:40]} Qc1+ {[%emt 0:02:02]} 28. Kh2 {[%emt 0:00:19]} Qh6+ {[%emt 0:00:46]} 29. Kg3 {[%emt 0:02:38]} Qg7 {[%emt 0:01:08]} 30. Qf4 {[%emt 0:03:44]} g5 {[%emt 0:03:38]} 31. Qe4 {[%emt 0:03:54]} Qf6 {[%emt 0:01:03]} 32. Rd5 {[%emt 0:15:16]} Rxd6 {[%emt 0:03:15]} 33. Rf5 {[%emt 0:04:57]} Rd3+ {[%emt 0:02:20]} 34. f3 {[%emt 0:00:53]} Qd6+ {[%emt 0:00:43]} 35. Qe5 {[%emt 0:00:41]} Qxe5+ {[%emt 0:02:01]} 36. Rfxe5 {[%emt 0:00:34]} R8d5 {[%emt 0:01:12]} 37. Rxd5 {[%emt 0:01:05]} Rxd5 {[%emt 0:00:10]} 38. Rxb7 {[%emt 0:00:05]} h5 {[%emt 0:02:06]} 39. b3 {[%emt 0:01:49]} Kg7 {[%emt 0:05:02]} 0-1

[Event "NOR-chT Eliteserien 2021-22"]
[Site "Norway"]
[Date "2022.03.06"]
[Round "9.23"]
[White "Nielsen, Andre"]
[Black "Demac, Elias"]
[Result "0-1"]
[ECO "C55"]
[WhiteElo "2219"]
[BlackElo "2206"]
[Annotator "ChessBase"]
[PlyCount "84"]
[EventDate "2021.10.29"]
[EventType "team-tourn"]
[EventCountry "NOR"]
[SourceTitle "playchess.com"]
[Source "ChessBase"]
[SourceQuality "1"]
[TimeControl "40/5400+30:1800+30"]

1. e4 {[%emt 0:00:05]} e5 {[%emt 0:00:02]} 2. Nf3 {[%emt 0:00:17]} Nc6 {[%emt 0:00:04]} 3. Bc4 {[%emt 0:01:39]} Nf6 {[%emt 0:00:06]} 4. d3 {[%emt 0:00:13]} h6 {[%emt 0:00:05]} 5. c3 {[%emt 0:03:42]} d6 {[%emt 0:01:22]} 6. Nbd2 {[%emt 0:00:31]} g5 {[%emt 0:01:44]} 7. O-O {[%emt 0:01:01]} Bg7 {[%emt 0:00:49]} 8. Bb3 {[%emt 0:02:38]} O-O {[%emt 0:02:28]} 9. Nc4 {[%emt 0:01:50]} Be6 {[%emt 0:00:42]} 10. Re1 {[%emt 0:02:35]} Re8 {[%emt 0:08:13]} 11. Ne3 {[%emt 1:21:29]} d5 {[%emt 0:08:35]} 12. Ba4 {[%emt 0:06:54]} dxe4 {[%emt 0:00:29]} 13. Bxc6 {[%emt 0:03:07]} bxc6 {[%emt 0:00:03]} 14. Nxe5 {[%emt 0:01:04]} exd3 {[%emt 1:12:48]} 15. Qxd3 {[%emt 0:08:53]} Qxd3 {[%emt 0:09:05]} 16. Nxd3 {[%emt 0:00:09]} Ne4 {[%emt 0:00:21]} 17. f3 {[%emt 0:31:28]} Nd6 {[%emt 0:16:02]} 18. Kf2 {[%emt 0:01:01]} f5 {[%emt 0:06:48]} 19. Nc5 {[%emt 0:02:14]} Bf7 {[%emt 0:01:06]} 20. Nc2 {[%emt 0:03:48]} Rxe1 {[%emt 0:00:45]} 21. Nxe1 {[%emt 0:00:39]} Rd8 {[%emt 0:08:33]} 22. Nc2 {[%emt 0:00:45]} Nc4 {[%emt 0:32:05]} 23. Ke2 {[%emt 0:17:27]} Be5 {[%emt 0:08:15]} 24. Ne3 {[%emt 0:03:18]} Nxe3 {[%emt 0:03:31]} 25. Bxe3 {[%emt 0:00:07]} Bc4+ {[%emt 0:00:11]} 26. Ke1 {[%emt 0:04:04]} Bxh2 {[%emt 0:01:12]} 27. Kf2 {[%emt 0:00:17]} Be5 {[%emt 0:04:59]} 28. b3 {[%emt 0:01:00]} f4 {[%emt 0:02:13]} 29. Bd4 {[%emt 0:01:26]} Rxd4 {[%emt 0:01:22]} 30. cxd4 {[%emt 0:00:19]} Bxd4+ {[%emt 0:00:01]} 31. Ke1 {[%emt 0:00:08]} Bxa1 {[%emt 0:00:08]} 32. bxc4 {[%emt 0:00:08]} Kf7 {[%emt 0:00:40]} 33. Ke2 {[%emt 0:00:11]} Kf6 {[%emt 0:02:38]} 34. Na6 {[%emt 0:02:25]} Be5 {[%emt 0:00:09]} 35. Nb8 {[%emt 0:01:34]} c5 {[%emt 0:01:46]} 36. Nd7+ {[%emt 0:00:56]} Kf5 {[%emt 0:00:11]} 37. Nxc5 {[%emt 0:00:22]} g4 {[%emt 0:08:57]} 38. fxg4+ {[%emt 0:00:43]} Kxg4 {[%emt 0:00:02]} 39. Ne4 {[%emt 0:00:12]} h5 {[%emt 0:01:21]} 40. Kf2 {[%emt 0:00:33]} h4 {[%emt 0:00:35]} 41. Ke2 {[%emt 0:11:45]} Bd4 {[%emt 0:13:06]} 42. Kd3 {[%emt 0:00:30]} Be5 {[%emt 0:00:30]} 0-1

[Event "NOR-chT Eliteserien 2021-22"]
[Site "Norway"]
[Date "2022.03.06"]
[Round "9.24"]
[White "Mansoor, Afras"]
[Black "Solberg, Joachim"]
[Result "1-0"]
[ECO "D10"]
[WhiteElo "2003"]
[BlackElo "2216"]
[Annotator "ChessBase"]
[PlyCount "84"]
[EventDate "2021.10.29"]
[EventType "team-tourn"]
[EventCountry "NOR"]
[SourceTitle "playchess.com"]
[Source "ChessBase"]
[SourceQuality "1"]
[TimeControl "40/5400+30:1800+30"]

1. d4 {[%emt 0:00:02]} d5 {[%emt 0:00:05]} 2. c4 {[%emt 0:00:04]} c6 {[%emt 0:00:56]} 3. Nc3 {[%emt 0:00:21]} e5 {[%emt 0:00:08]} 4. dxe5 {[%emt 0:03:20]} d4 {[%emt 0:00:04]} 5. Ne4 {[%emt 1:29:13]} Qa5+ {[%emt 0:00:05]} 6. Bd2 {[%emt 1:27:05]} Qxe5 {[%emt 0:00:06]} 7. Ng3 {[%emt 0:00:58]} Nf6 {[%emt 0:00:11]} 8. Nf3 {[%emt 0:01:13]} Qd6 {[%emt 0:00:05]} 9. Qc2 {[%emt 0:06:42]} Be7 {[%emt 0:06:08]} 10. O-O-O {[%emt 0:06:33]} c5 {[%emt 1:27:42]} 11. e3 {[%emt 0:10:54]} dxe3 {[%emt 0:11:42]} 12. Bxe3 {[%emt 0:04:02]} Qa6 {[%emt 0:00:15]} 13. Nf5 {[%emt 0:15:20]} Bxf5 {[%emt 0:01:32]} 14. Qxf5 {[%emt 0:00:06]} O-O {[%emt 1:12:15]} 15. a3 {[%emt 0:06:22]} Nc6 {[%emt 0:00:38]} 16. Bd3 {[%emt 0:00:40]} Rad8 {[%emt 0:00:53]} 17. g4 {[%emt 0:03:47]} Qb6 {[%emt 0:11:36]} 18. Bg5 {[%emt 0:35:58]} g6 {[%emt 0:03:54]} 19. Qf4 {[%emt 0:00:04]} Nd4 {[%emt 0:00:10]} 20. h4 {[%emt 0:06:41]} Ne6 {[%emt 0:09:57]} 21. Qg3 {[%emt 0:17:12]} Qb3 {[%emt 0:03:35]} 22. Ne5 {[%emt 0:04:13]} Nd4 {[%emt 0:02:52]} 23. Qh3 {[%emt 0:06:13]} Rfe8 {[%emt 0:31:08]} 24. h5 {[%emt 0:03:20]} Ne4 {[%emt 0:04:01]} 25. Be3 {[%emt 0:00:57]} Nxf2 {[%emt 0:00:43]} 26. Bxf2 {[%emt 0:00:03]} Bg5+ {[%emt 0:00:20]} 27. Kb1 {[%emt 0:00:23]} Rxe5 {[%emt 0:01:00]} 28. hxg6 {[%emt 0:00:27]} h6 {[%emt 0:00:09]} 29. gxf7+ {[%emt 0:01:23]} Kf8 {[%emt 0:00:05]} 30. Bh4 {[%emt 0:01:31]} Bxh4 {[%emt 0:02:02]} 31. Qxh4 {[%emt 0:00:04]} Rd6 {[%emt 0:00:03]} 32. Qg3 {[%emt 0:01:40]} Rde6 {[%emt 0:02:01]} 33. Rd2 {[%emt 0:00:44]} Nf3 {[%emt 0:01:47]} 34. Qxf3 {[%emt 0:00:33]} Re1+ {[%emt 0:02:21]} 35. Rd1 {[%emt 0:00:05]} R6e3 {[%emt 0:00:07]} 36. Bc2 {[%emt 0:02:22]} Rxf3 {[%emt 0:02:57]} 37. Bxb3 {[%emt 0:00:04]} Rxh1 {[%emt 0:00:03]} 38. Rxh1 {[%emt 0:00:04]} Rxb3 {[%emt 0:00:23]} 39. Rxh6 {[%emt 0:00:07]} Rg3 {[%emt 0:01:53]} 40. Rh8+ {[%emt 0:01:51]} Kxf7 {[%emt 0:00:06]} 41. Rh7+ {[%emt 0:04:18]} Ke6 {[%emt 0:00:38]} 42. Rxb7 {[%emt 0:00:11]} Rxg4 {[%emt 0:00:04]} 1-0

[Event "NOR-chT Eliteserien 2021-22"]
[Site "Norway"]
[Date "2022.03.06"]
[Round "9.26"]
[White "Shehzad, Shazil"]
[Black "Urkedal, Frode Olav Olsen"]
[Result "1/2-1/2"]
[ECO "B90"]
[WhiteElo "2182"]
[BlackElo "2549"]
[Annotator "ChessBase"]
[PlyCount "89"]
[EventDate "2021.10.29"]
[EventType "team-tourn"]
[EventCountry "NOR"]
[SourceTitle "playchess.com"]
[Source "ChessBase"]
[SourceQuality "1"]
[TimeControl "40/5400+30:1800+30"]

1. e4 {[%emt 1:31:00]} c5 {[%emt 0:00:31]} 2. Nf3 {[%emt 0:00:29]} d6 {[%emt 0:00:17]} 3. d4 {[%emt 0:00:36]} cxd4 {[%emt 1:31:12]} 4. Nxd4 {[%emt 0:00:02]} Nf6 {[%emt 0:00:06]} 5. Nc3 {[%emt 0:00:04]} a6 {[%emt 0:00:03]} 6. f3 {[%emt 0:00:04]} e5 {[%emt 0:01:12]} 7. Nb3 {[%emt 0:00:06]} h5 {[%emt 0:01:45]} 8. Bg5 {[%emt 0:04:33]} Be7 {[%emt 0:01:04]} 9. Qd2 {[%emt 0:00:26]} Be6 {[%emt 0:01:30]} 10. O-O-O {[%emt 0:01:51]} Nbd7 {[%emt 0:00:32]} 11. h4 {[%emt 0:01:18]} Qc7 {[%emt 0:02:52]} 12. Nd5 {[%emt 0:04:20]} Bxd5 {[%emt 0:00:07]} 13. exd5 {[%emt 0:00:30]} Nb6 {[%emt 0:00:42]} 14. Bxf6 {[%emt 0:03:10]} Bxf6 {[%emt 0:00:12]} 15. Kb1 {[%emt 0:06:41]} Rc8 {[%emt 0:05:33]} 16. Bd3 {[%emt 0:00:44]} Nc4 {[%emt 0:03:51]} 17. Bxc4 {[%emt 0:01:21]} Qxc4 {[%emt 0:03:23]} 18. Rde1 {[%emt 0:00:40]} Qb5 {[%emt 0:19:25]} 19. Re4 {[%emt 0:05:09]} Rc4 {[%emt 0:13:14]} 20. Qd3 {[%emt 0:03:15]} Rxe4 {[%emt 0:00:09]} 21. Qxe4 {[%emt 0:00:17]} O-O {[%emt 0:00:41]} 22. g4 {[%emt 0:03:17]} Rc8 {[%emt 0:05:05]} 23. Nd2 {[%emt 0:05:35]} Qc5 {[%emt 0:09:37]} 24. gxh5 {[%emt 0:05:13]} Qf2 {[%emt 0:03:59]} 25. Nc4 {[%emt 0:04:09]} Qg2 {[%emt 0:09:50]} 26. Rc1 {[%emt 0:00:51]} Rd8 {[%emt 0:03:14]} 27. h6 {[%emt 0:02:06]} g6 {[%emt 0:06:53]} 28. h5 {[%emt 0:01:44]} Bg5 {[%emt 0:02:31]} 29. Re1 {[%emt 0:04:07]} gxh5 {[%emt 0:00:44]} 30. h7+ {[%emt 0:01:32]} Kh8 {[%emt 0:01:42]} 31. Qf5 {[%emt 0:12:21]} Qg3 {[%emt 0:01:01]} 32. Rh1 {[%emt 0:00:33]} b5 {[%emt 0:01:33]} 33. Na5 {[%emt 0:01:23]} h4 {[%emt 0:01:33]} 34. Nb7 {[%emt 0:29:02]} Rf8 {[%emt 0:01:19]} 35. Nxd6 {[%emt 0:00:00]} Qf4 {[%emt 0:00:10]} 36. Qxf4 {[%emt 0:00:00]} exf4 {[%emt 0:00:02]} 37. Ne4 {[%emt 0:00:00]} Bd8 {[%emt 0:00:58]} 38. b3 {[%emt 0:00:00]} b4 {[%emt 0:00:10]} 39. a3 {[%emt 0:02:30]} a5 {[%emt 0:00:20]} 40. axb4 {[%emt 0:03:00]} axb4 {[%emt 0:00:06]} 41. c4 {[%emt 0:09:23]} bxc3 {[%emt 0:30:29]} 42. Kc2 {[%emt 0:00:25]} Kxh7 {[%emt 0:01:17]} 43. Kxc3 {[%emt 0:05:56]} Rg8 {[%emt 0:00:00]} 44. d6 {[%emt 0:00:00]} Rg3 {[%emt 0:00:00]} 45. Kd4 {[%emt 0:16:46]} 1/2-1/2

[Event "NOR-chT Eliteserien 2021-22"]
[Site "Norway"]
[Date "2022.03.06"]
[Round "9.27"]
[White "Haug, Johannes"]
[Black "Kvaloy, Aksel Bu"]
[Result "1-0"]
[ECO "D38"]
[WhiteElo "2478"]
[BlackElo "2280"]
[Annotator "ChessBase"]
[PlyCount "82"]
[EventDate "2021.10.29"]
[EventType "team-tourn"]
[EventCountry "NOR"]
[SourceTitle "playchess.com"]
[Source "ChessBase"]
[SourceQuality "1"]
[TimeControl "40/5400+30:1800+30"]

1. d4 {[%emt 0:00:29]} Nf6 {[%emt 0:00:19]} 2. c4 {[%emt 0:00:05]} e6 {[%emt 0:00:22]} 3. Nf3 {[%emt 0:00:06]} d5 {[%emt 1:31:19]} 4. Nc3 {[%emt 0:00:06]} Bb4 {[%emt 0:00:22]} 5. Qa4+ {[%emt 0:00:20]} Nc6 {[%emt 0:00:07]} 6. a3 {[%emt 0:00:05]} Bxc3+ {[%emt 1:31:57]} 7. bxc3 {[%emt 0:01:11]} O-O {[%emt 0:22:00]} 8. Bg5 {[%emt 0:01:15]} h6 {[%emt 0:04:08]} 9. Bh4 {[%emt 0:00:29]} Bd7 {[%emt 0:09:41]} 10. Qc2 {[%emt 0:22:31]} Na5 {[%emt 0:09:26]} 11. cxd5 {[%emt 0:09:34]} exd5 {[%emt 0:00:13]} 12. e3 {[%emt 0:05:16]} c5 {[%emt 0:48:12]} 13. Ne5 {[%emt 0:14:33]} Be6 {[%emt 0:01:34]} 14. Bd3 {[%emt 0:07:48]} Rc8 {[%emt 0:02:31]} 15. O-O {[%emt 0:08:56]} cxd4 {[%emt 0:03:13]} 16. exd4 {[%emt 0:00:12]} Qc7 {[%emt 0:01:46]} 17. Rac1 {[%emt 0:00:26]} Ne4 {[%emt 0:15:56]} 18. Bxe4 {[%emt 0:14:18]} dxe4 {[%emt 0:00:05]} 19. Qxe4 {[%emt 0:00:22]} Nb3 {[%emt 0:01:08]} 20. Rcd1 {[%emt 0:01:45]} Rfe8 {[%emt 0:09:29]} 21. d5 {[%emt 0:07:04]} Bd7 {[%emt 0:00:20]} 22. d6 {[%emt 0:01:33]} Qxc3 {[%emt 0:00:39]} 23. Be7 {[%emt 0:00:21]} Nd2 {[%emt 0:01:43]} 24. Qe1 {[%emt 0:03:45]} Nxf1 {[%emt 0:03:46]} 25. Qxc3 {[%emt 0:01:07]} Rxc3 {[%emt 0:00:03]} 26. Nxd7 {[%emt 0:02:38]} Nd2 {[%emt 0:02:21]} 27. Ne5 {[%emt 0:00:19]} f6 {[%emt 0:00:13]} 28. d7 {[%emt 0:00:57]} Ra8 {[%emt 0:00:14]} 29. Bb4 {[%emt 0:02:08]} Rc2 {[%emt 0:00:48]} 30. Nf3 {[%emt 0:00:24]} Rd8 {[%emt 0:00:26]} 31. Bxd2 {[%emt 0:00:33]} Rxd7 {[%emt 0:00:07]} 32. Kf1 {[%emt 0:00:25]} Ra2 {[%emt 0:00:16]} 33. Rb1 {[%emt 0:00:32]} Rxa3 {[%emt 0:00:33]} 34. Be3 {[%emt 0:00:04]} b6 {[%emt 0:00:49]} 35. Nd4 {[%emt 0:01:39]} Ra2 {[%emt 0:00:49]} 36. Rc1 {[%emt 0:00:16]} Kf7 {[%emt 0:00:23]} 37. g4 {[%emt 0:00:18]} Ra4 {[%emt 0:00:37]} 38. Rd1 {[%emt 0:00:21]} Rb4 {[%emt 0:00:34]} 39. Ke2 {[%emt 0:00:18]} a5 {[%emt 0:00:26]} 40. Kd3 {[%emt 0:00:10]} Rc7 {[%emt 0:00:44]} 41. f3 {[%emt 0:32:16]} Rd7 {[%emt 0:30:31]} 1-0

[Event "NOR-chT Eliteserien 2021-22"]
[Site "Norway"]
[Date "2022.03.06"]
[Round "9.28"]
[White "Gjestemoen-VonHirsch, Andre"]
[Black "Ranaldi, Lucas"]
[Result "0-1"]
[ECO "B12"]
[WhiteElo "2243"]
[BlackElo "2337"]
[Annotator "ChessBase"]
[PlyCount "80"]
[EventDate "2021.10.29"]
[EventType "team-tourn"]
[EventCountry "NOR"]
[SourceTitle "playchess.com"]
[Source "ChessBase"]
[SourceQuality "1"]
[TimeControl "40/5400+30:1800+30"]

1. e4 {[%emt 0:00:32]} c6 {[%emt 1:31:00]} 2. d4 {[%emt 0:00:04]} d5 {[%emt 0:00:07]} 3. e5 {[%emt 0:00:03]} Bf5 {[%emt 0:00:06]} 4. h4 {[%emt 0:00:04]} h5 {[%emt 0:00:48]} 5. Bd3 {[%emt 0:00:06]} Bxd3 {[%emt 0:00:08]} 6. Qxd3 {[%emt 0:00:04]} Qa5+ {[%emt 0:02:29]} 7. Bd2 {[%emt 0:04:01]} Qa6 {[%emt 0:00:07]} 8. e6 {[%emt 0:00:14]} Qxd3 {[%emt 0:00:15]} 9. exf7+ {[%emt 0:00:07]} Kxf7 {[%emt 0:00:09]} 10. cxd3 {[%emt 0:00:04]} Nd7 {[%emt 0:06:29]} 11. Nf3 {[%emt 0:03:47]} Nh6 {[%emt 0:03:55]} 12. Nc3 {[%emt 0:03:08]} Nf5 {[%emt 0:08:27]} 13. Ne2 {[%emt 0:13:38]} g6 {[%emt 0:08:22]} 14. Ng3 {[%emt 0:11:20]} e6 {[%emt 0:10:00]} 15. Nxf5 {[%emt 1:00:48]} exf5 {[%emt 0:55:24]} 16. O-O {[%emt 0:00:23]} Bd6 {[%emt 0:10:40]} 17. Rfe1 {[%emt 0:07:25]} Rhe8 {[%emt 0:00:31]} 18. g3 {[%emt 0:03:33]} Nf8 {[%emt 0:45:26]} 19. Kg2 {[%emt 0:12:10]} Ne6 {[%emt 0:02:56]} 20. Re2 {[%emt 0:07:43]} Nc7 {[%emt 0:28:35]} 21. Ng5+ {[%emt 0:01:31]} Kf6 {[%emt 0:01:41]} 22. Rae1 {[%emt 0:00:08]} Rxe2 {[%emt 0:00:50]} 23. Rxe2 {[%emt 0:00:07]} Re8 {[%emt 0:00:19]} 24. Rxe8 {[%emt 0:00:24]} Nxe8 {[%emt 0:00:02]} 25. Kf3 {[%emt 0:00:16]} Nc7 {[%emt 0:11:10]} 26. Bf4 {[%emt 0:03:38]} Bxf4 {[%emt 0:04:50]} 27. Kxf4 {[%emt 0:00:04]} Nb5 {[%emt 0:00:21]} 28. Nf3 {[%emt 0:00:19]} a5 {[%emt 0:02:22]} 29. Ke3 {[%emt 0:13:15]} Nc7 {[%emt 0:00:17]} 30. Ne5 {[%emt 0:00:43]} Ne6 {[%emt 0:02:56]} 31. Nd7+ {[%emt 0:15:43]} Ke7 {[%emt 0:00:20]} 32. Nc5 {[%emt 0:04:02]} f4+ {[%emt 0:00:26]} 33. gxf4 {[%emt 0:00:17]} Ng7 {[%emt 0:00:57]} 34. Nxb7 {[%emt 0:00:17]} Nf5+ {[%emt 0:00:43]} 35. Kf3 {[%emt 0:01:38]} Nxh4+ {[%emt 0:02:44]} 36. Kg3 {[%emt 0:00:02]} Nf5+ {[%emt 0:00:08]} 37. Kh3 {[%emt 0:00:15]} a4 {[%emt 0:00:33]} 38. Nc5 {[%emt 0:00:03]} a3 {[%emt 0:00:56]} 39. bxa3 {[%emt 0:00:38]} Nxd4 {[%emt 0:00:10]} 40. a4 {[%emt 0:10:46]} Kd6 {[%emt 0:00:57]} 0-1